[Event "*** Titled Tuesday Blitz"]
[Site "Chess.com"]
[Date "2018.06.05"]
[Round "3"]
[White "Tash_Boy"]
[Black "SantoBlue"]
[Result "0-1"]
[WhiteElo "2701"]
[BlackElo "2800"]
[TimeControl "180+2"]
[EndTime "13:43:25 PDT"]
[Termination "SantoBlue won by resignation"]

1. e4 {[%clk 0:03:01.9]} 1... c5 {[%clk 0:02:52.8]} 2. Nf3 {[%clk 0:03:01.8]}
2... g6 {[%clk 0:02:53.6]} 3. d4 {[%clk 0:03:03]} 3... cxd4 {[%clk 0:02:54.3]}
4. Nxd4 {[%clk 0:03:04.9]} 4... Nc6 {[%clk 0:02:53.6]} 5. c4 {[%clk 0:03:05]}
5... Nf6 {[%clk 0:02:54.2]} 6. Nc3 {[%clk 0:03:05.4]} 6... Nxd4 {[%clk
0:02:55.4]} 7. Qxd4 {[%clk 0:03:06.9]} 7... d6 {[%clk 0:02:56.1]} 8. Be3 {[%clk
0:03:04.7]} 8... Bg7 {[%clk 0:02:57]} 9. Be2 {[%clk 0:03:05.7]} 9... O-O {[%clk
0:02:57.8]} 10. Qd2 {[%clk 0:03:06]} 10... Qa5 {[%clk 0:02:56.3]} 11. f3 {[%clk
0:03:05.7]} 11... Be6 {[%clk 0:02:55.4]} 12. Rc1 {[%clk 0:03:04.7]} 12... Rfc8
{[%clk 0:02:51.6]} 13. b3 {[%clk 0:03:05.6]} 13... a6 {[%clk 0:02:45.8]} 14. Na4
{[%clk 0:03:06]} 14... Qxd2+ {[%clk 0:02:46.1]} 15. Kxd2 {[%clk 0:03:06.7]}
15... Nd7 {[%clk 0:02:47.6]} 16. g4 {[%clk 0:02:54.6]} 16... f5 {[%clk
0:02:33.9]} 17. gxf5 {[%clk 0:02:55.2]} 17... gxf5 {[%clk 0:02:35]} 18. Rhg1
{[%clk 0:02:56.7]} 18... Kh8 {[%clk 0:02:27.6]} 19. Nc3 {[%clk 0:02:44.5]} 19...
Ne5 {[%clk 0:02:21.6]} 20. Nd5 {[%clk 0:02:41.8]} 20... Bxd5 {[%clk 0:02:22.5]}
21. exd5 {[%clk 0:02:41.7]} 21... f4 {[%clk 0:02:07.3]} 22. Bxf4 {[%clk
0:02:32.1]} 22... Rf8 {[%clk 0:02:07.9]} 23. Bg5 {[%clk 0:02:18]} 23... Nxf3+
{[%clk 0:02:00.2]} 24. Bxf3 {[%clk 0:02:18.4]} 24... Rxf3 {[%clk 0:02:02.1]} 25.
Bxe7 {[%clk 0:02:18.8]} 25... Re8 {[%clk 0:01:46.2]} 26. Rce1 {[%clk 0:02:19.3]}
26... Bc3+ {[%clk 0:01:42.9]} 27. Kd1 {[%clk 0:02:01]} 27... Bxe1 {[%clk
0:01:41.5]} 28. Rxe1 {[%clk 0:02:02.9]} 28... Kg8 {[%clk 0:01:35.1]} 29. Bxd6
{[%clk 0:02:03.3]} 29... Rxe1+ {[%clk 0:01:30]} 30. Kxe1 {[%clk 0:02:05.2]}
30... Kf7 {[%clk 0:01:31]} 31. Ke2 {[%clk 0:02:03.7]} 31... Rc3 {[%clk
0:01:31.1]} 32. Kd2 {[%clk 0:02:04.6]} 32... Rf3 {[%clk 0:01:32.1]} 33. Bg3
{[%clk 0:02:01.6]} 33... Ke8 {[%clk 0:01:29.5]} 34. Ke2 {[%clk 0:01:58.6]} 34...
Rc3 {[%clk 0:01:29.8]} 35. Kd2 {[%clk 0:01:59.5]} 35... Rf3 {[%clk 0:01:31]} 36.
Ke2 {[%clk 0:01:43]} 36... Rf5 {[%clk 0:01:08.9]} 37. Ke3 {[%clk 0:01:38.2]}
37... Kd7 {[%clk 0:01:10]} 38. Kd4 {[%clk 0:01:36]} 38... Rf1 {[%clk 0:01:10.6]}
39. Kc5 {[%clk 0:01:35.2]} 39... Rb1 {[%clk 0:01:08.8]} 40. Kb6 {[%clk
0:01:30.5]} 40... Kc8 {[%clk 0:01:09.6]} 41. Be5 {[%clk 0:01:29.2]} 41... Re1
{[%clk 0:01:06.9]} 42. Bg3 {[%clk 0:01:28.5]} 42... Re2 {[%clk 0:01:08.1]} 43.
a3 {[%clk 0:00:48.5]} 43... Re3 {[%clk 0:00:54.7]} 44. b4 {[%clk 0:00:49.4]}
44... Rxa3 {[%clk 0:00:56.1]} 45. b5 {[%clk 0:00:50.2]} 45... Rb3 {[%clk
0:00:49.7]} 46. d6 {[%clk 0:00:41.2]} 46... Kd7 {[%clk 0:00:43.6]} 47. Be5
{[%clk 0:00:29.9]} 47... Rb4 {[%clk 0:00:44.6]} 48. Kc5 {[%clk 0:00:27.6]} 48...
Rb1 {[%clk 0:00:34.8]} 49. bxa6 {[%clk 0:00:24.9]} 49... bxa6 {[%clk 0:00:16.2]}
50. Bc3 {[%clk 0:00:25.4]} 50... Rd1 {[%clk 0:00:15.3]} 51. Be5 {[%clk
0:00:25.5]} 51... Re1 {[%clk 0:00:14.6]} 52. Bg3 {[%clk 0:00:25.6]} 52... Rb1
{[%clk 0:00:13.4]} 53. Kd5 {[%clk 0:00:25.2]} 53... a5 {[%clk 0:00:14.2]} 54. c5
{[%clk 0:00:26.3]} 54... Rd1+ {[%clk 0:00:14.8]} 55. Kc4 {[%clk 0:00:25.7]}
55... Kc6 {[%clk 0:00:16.1]} 56. Kb3 {[%clk 0:00:20.8]} 56... Kxc5 {[%clk
0:00:12.2]} 57. Kc2 {[%clk 0:00:21.9]} 57... Rd5 {[%clk 0:00:11.5]} 58. Kc3
{[%clk 0:00:22]} 58... Kb5 {[%clk 0:00:11.4]} 59. Bf4 {[%clk 0:00:22.4]} 59...
a4 {[%clk 0:00:12.4]} 60. Bg3 {[%clk 0:00:23.3]} 60... h5 {[%clk 0:00:13.5]} 61.
Bf4 {[%clk 0:00:23.6]} 61... h4 {[%clk 0:00:14.7]} 62. Kc2 {[%clk 0:00:21.6]}
62... h3 {[%clk 0:00:15.9]} 63. Bg3 {[%clk 0:00:22.1]} 63... Kc6 {[%clk
0:00:17]} 64. Kc3 {[%clk 0:00:22.6]} 64... Rxd6 {[%clk 0:00:16.6]} 65. Bxd6
{[%clk 0:00:23]} 65... Kxd6 {[%clk 0:00:18.5]} 66. Kb4 {[%clk 0:00:24.6]} 66...
Ke5 {[%clk 0:00:18.7]} 67. Kxa4 {[%clk 0:00:26.5]} 67... Kf4 {[%clk 0:00:20.2]}
68. Kb4 {[%clk 0:00:27.6]} 68... Kf3 {[%clk 0:00:21.6]} 69. Kc3 {[%clk
0:00:28.6]} 69... Kg2 {[%clk 0:00:22.9]} 70. Kd2 {[%clk 0:00:29.4]} 70... Kxh2
{[%clk 0:00:24.8]} 71. Ke2 {[%clk 0:00:30.5]} 71... Kg2 {[%clk 0:00:26.7]} 0-1

[Event "*** Titled Tuesday Blitz"]
[Site "Chess.com"]
[Date "2018.06.05"]
[Round "3"]
[White "nochewycandy"]
[Black "krzysztofszczurek"]
[Result "1/2-1/2"]
[WhiteElo "2103"]
[BlackElo "2172"]
[TimeControl "180+2"]
[EndTime "13:43:25 PDT"]
[Termination "Game drawn - insufficient material"]

1. e4 {[%clk 0:03:01.9]} 1... c5 {[%clk 0:03:00.2]} 2. Nf3 {[%clk 0:03:02.6]}
2... d6 {[%clk 0:03:00.3]} 3. Bb5+ {[%clk 0:03:03.9]} 3... Bd7 {[%clk
0:03:00.7]} 4. c4 {[%clk 0:03:01.6]} 4... Nf6 {[%clk 0:02:59.2]} 5. Nc3 {[%clk
0:03:01.9]} 5... g6 {[%clk 0:02:59]} 6. d4 {[%clk 0:02:52.1]} 6... a6 {[%clk
0:02:49]} 7. Bxd7+ {[%clk 0:02:52.5]} 7... Nbxd7 {[%clk 0:02:49.2]} 8. e5 {[%clk
0:02:53.3]} 8... cxd4 {[%clk 0:02:39.9]} 9. exf6 {[%clk 0:02:54.4]} 9... dxc3
{[%clk 0:02:40.3]} 10. fxe7 {[%clk 0:02:45.3]} 10... Qxe7+ {[%clk 0:02:40.2]}
11. Kf1 {[%clk 0:02:37.1]} 11... Bg7 {[%clk 0:02:38]} 12. bxc3 {[%clk
0:02:37.5]} 12... Bxc3 {[%clk 0:02:36.4]} 13. Rb1 {[%clk 0:02:38.1]} 13... Nc5
{[%clk 0:02:36.9]} 14. Bg5 {[%clk 0:02:33.8]} 14... Qe4 {[%clk 0:02:31.3]} 15.
Rc1 {[%clk 0:02:29.9]} 15... Bg7 {[%clk 0:02:16.3]} 16. Qxd6 {[%clk 0:02:27]}
16... Qd3+ {[%clk 0:02:04.4]} 17. Qxd3 {[%clk 0:02:25.5]} 17... Nxd3 {[%clk
0:02:04.7]} 18. Rb1 {[%clk 0:02:18.4]} 18... h6 {[%clk 0:02:00.3]} 19. Be3
{[%clk 0:02:17]} 19... O-O-O {[%clk 0:01:59.9]} 20. g3 {[%clk 0:02:11.8]} 20...
Nb2 {[%clk 0:01:53.6]} 21. Rc1 {[%clk 0:01:49.3]} 21... Rhe8 {[%clk 0:01:44.4]}
22. Kg2 {[%clk 0:01:45.2]} 22... Kb8 {[%clk 0:01:44.3]} 23. c5 {[%clk
0:01:34.9]} 23... Nd3 {[%clk 0:01:38.4]} 24. Rc4 {[%clk 0:01:35.9]} 24... Nb2
{[%clk 0:01:16]} 25. Rb4 {[%clk 0:01:28.6]} 25... Nd3 {[%clk 0:01:04]} 26. Rb3
{[%clk 0:01:27]} 26... Ka8 {[%clk 0:00:52.5]} 27. Rhb1 {[%clk 0:01:18.4]} 27...
Re7 {[%clk 0:00:48.6]} 28. Kg1 {[%clk 0:01:05.8]} 28... g5 {[%clk 0:00:29.8]}
29. Rd1 {[%clk 0:00:48.1]} 29... Red7 {[%clk 0:00:30.1]} 30. Rdb1 {[%clk
0:00:48.4]} 30... Ne5 {[%clk 0:00:27.3]} 31. Nxe5 {[%clk 0:00:46.6]} 31... Bxe5
{[%clk 0:00:28.1]} 32. Kg2 {[%clk 0:00:44.3]} 32... Rc8 {[%clk 0:00:24.5]} 33.
Rb6 {[%clk 0:00:45.8]} 33... f6 {[%clk 0:00:21.5]} 34. h3 {[%clk 0:00:40.2]}
34... Rf7 {[%clk 0:00:17.1]} 35. Kf3 {[%clk 0:00:41.1]} 35... Bb8 {[%clk
0:00:17.5]} 36. a4 {[%clk 0:00:40.3]} 36... Ba7 {[%clk 0:00:18.2]} 37. Re6
{[%clk 0:00:40.2]} 37... Bxc5 {[%clk 0:00:17.8]} 38. Rc1 {[%clk 0:00:41]} 38...
Rfc7 {[%clk 0:00:18.7]} 39. Bxc5 {[%clk 0:00:40.6]} 39... Rxc5 {[%clk
0:00:19.2]} 40. Rxc5 {[%clk 0:00:41.7]} 40... Rxc5 {[%clk 0:00:20.7]} 41. Rxf6
{[%clk 0:00:43.6]} 41... Ra5 {[%clk 0:00:22.1]} 42. Rxh6 {[%clk 0:00:44.4]}
42... Rxa4 {[%clk 0:00:23.6]} 43. Rg6 {[%clk 0:00:45.3]} 43... Ra5 {[%clk
0:00:24.1]} 44. Kg4 {[%clk 0:00:46]} 44... Ra2 {[%clk 0:00:24.9]} 45. Kxg5
{[%clk 0:00:43]} 45... Rxf2 {[%clk 0:00:24.5]} 46. h4 {[%clk 0:00:44.1]} 46...
a5 {[%clk 0:00:25.3]} 47. h5 {[%clk 0:00:45.3]} 47... a4 {[%clk 0:00:26.1]} 48.
Re6 {[%clk 0:00:38.8]} 48... Rh2 {[%clk 0:00:24.6]} 49. h6 {[%clk 0:00:39.4]}
49... a3 {[%clk 0:00:24.8]} 50. Re3 {[%clk 0:00:36.9]} 50... a2 {[%clk
0:00:22.6]} 51. Ra3+ {[%clk 0:00:37.9]} 51... Kb8 {[%clk 0:00:23.4]} 52. Kg6
{[%clk 0:00:39.4]} 52... Rh3 {[%clk 0:00:18.4]} 53. Rxa2 {[%clk 0:00:36.5]}
53... Rxg3+ {[%clk 0:00:19.3]} 54. Kf6 {[%clk 0:00:35.4]} 54... Rh3 {[%clk
0:00:19.2]} 55. Kg7 {[%clk 0:00:36.8]} 55... Rg3+ {[%clk 0:00:20.2]} 56. Kf7
{[%clk 0:00:36]} 56... Rh3 {[%clk 0:00:20.4]} 57. Kg6 {[%clk 0:00:34.7]} 57...
Rg3+ {[%clk 0:00:21.5]} 58. Kh7 {[%clk 0:00:36.1]} 58... b5 {[%clk 0:00:21.1]}
59. Rb2 {[%clk 0:00:35.8]} 59... Rg5 {[%clk 0:00:21.2]} 60. Kh8 {[%clk
0:00:36.9]} 60... Kc7 {[%clk 0:00:22.6]} 61. h7 {[%clk 0:00:37.4]} 61... Kc6
{[%clk 0:00:23.6]} 62. Rc2+ {[%clk 0:00:36.7]} 62... Kb6 {[%clk 0:00:24.4]} 63.
Rc8 {[%clk 0:00:37.7]} 63... b4 {[%clk 0:00:23.4]} 64. Rg8 {[%clk 0:00:36.3]}
64... Rh5 {[%clk 0:00:23.2]} 65. Kg7 {[%clk 0:00:34.9]} 65... Kc5 {[%clk
0:00:22.4]} 66. Rc8+ {[%clk 0:00:26.7]} 66... Kd4 {[%clk 0:00:21.9]} 67. h8=Q
{[%clk 0:00:28.6]} 67... Rxh8 {[%clk 0:00:21.8]} 68. Kxh8 {[%clk 0:00:20.2]}
68... b3 {[%clk 0:00:21.8]} 69. Kg7 {[%clk 0:00:21]} 69... b2 {[%clk 0:00:22.7]}
70. Rb8 {[%clk 0:00:22.3]} 70... Kc3 {[%clk 0:00:24]} 71. Kf6 {[%clk 0:00:20.8]}
71... Kc2 {[%clk 0:00:24.3]} 72. Ke5 {[%clk 0:00:22]} 72... b1=Q {[%clk
0:00:24.3]} 73. Rxb1 {[%clk 0:00:23.6]} 73... Kxb1 {[%clk 0:00:25.6]} 1/2-1/2

[Event "*** Titled Tuesday Blitz"]
[Site "Chess.com"]
[Date "2018.06.05"]
[Round "3"]
[White "mazetofonias"]
[Black "EmreDedebas"]
[Result "0-1"]
[WhiteElo "2536"]
[BlackElo "2385"]
[TimeControl "180+2"]
[EndTime "13:43:34 PDT"]
[Termination "EmreDedebas won by checkmate"]

1. d4 {[%clk 0:03:01.1]} 1... Nf6 {[%clk 0:02:58.7]} 2. Nf3 {[%clk 0:03:02.5]}
2... e6 {[%clk 0:02:59.8]} 3. Bg5 {[%clk 0:03:03.9]} 3... d5 {[%clk 0:02:47.6]}
4. Nbd2 {[%clk 0:03:04.1]} 4... Be7 {[%clk 0:02:47.4]} 5. c3 {[%clk 0:03:04.3]}
5... b6 {[%clk 0:02:47.1]} 6. Bxf6 {[%clk 0:03:05.2]} 6... Bxf6 {[%clk
0:02:47.7]} 7. e4 {[%clk 0:03:07.1]} 7... dxe4 {[%clk 0:02:47.5]} 8. Nxe4 {[%clk
0:03:09]} 8... Bb7 {[%clk 0:02:40.5]} 9. Bd3 {[%clk 0:03:10.3]} 9... Be7 {[%clk
0:02:37.7]} 10. Qe2 {[%clk 0:03:11.6]} 10... Nd7 {[%clk 0:02:38.6]} 11. O-O-O
{[%clk 0:03:12.5]} 11... Nf6 {[%clk 0:02:34.2]} 12. Nxf6+ {[%clk 0:03:10.2]}
12... Bxf6 {[%clk 0:02:36.1]} 13. Kb1 {[%clk 0:03:11.6]} 13... Qd6 {[%clk
0:02:33.1]} 14. Rhe1 {[%clk 0:03:10.3]} 14... O-O-O {[%clk 0:02:22.4]} 15. g3
{[%clk 0:03:11.4]} 15... Rhe8 {[%clk 0:02:22.2]} 16. Nd2 {[%clk 0:03:10.6]}
16... Qd7 {[%clk 0:02:11.3]} 17. f4 {[%clk 0:03:08.3]} 17... Kb8 {[%clk
0:02:11.9]} 18. Nc4 {[%clk 0:03:05.5]} 18... Qd5 {[%clk 0:01:34.6]} 19. Nd2
{[%clk 0:02:59.5]} 19... Qd7 {[%clk 0:01:28.4]} 20. Bb5 {[%clk 0:02:58.4]} 20...
c6 {[%clk 0:01:24.3]} 21. Bc4 {[%clk 0:02:58.8]} 21... Qc7 {[%clk 0:01:25.7]}
22. Ne4 {[%clk 0:02:56.4]} 22... Be7 {[%clk 0:01:26.6]} 23. Rd2 {[%clk
0:02:56.7]} 23... c5 {[%clk 0:01:23.3]} 24. Red1 {[%clk 0:02:54.6]} 24... cxd4
{[%clk 0:01:21.4]} 25. Rxd4 {[%clk 0:02:55.2]} 25... Rxd4 {[%clk 0:01:22.4]} 26.
Rxd4 {[%clk 0:02:57.1]} 26... Rd8 {[%clk 0:01:23.9]} 27. Rxd8+ {[%clk 0:02:55]}
27... Qxd8 {[%clk 0:01:25.8]} 28. Bd3 {[%clk 0:02:56.2]} 28... g6 {[%clk
0:01:13.7]} 29. Nd2 {[%clk 0:02:54]} 29... Qd7 {[%clk 0:00:51.1]} 30. Nc4 {[%clk
0:02:54.7]} 30... Qc6 {[%clk 0:00:48.3]} 31. Qe5+ {[%clk 0:02:42.4]} 31... Kc8
{[%clk 0:00:43.8]} 32. Qh8+ {[%clk 0:01:19.8]} 32... Bd8 {[%clk 0:00:29.7]} 33.
Qxh7 {[%clk 0:01:20.9]} 33... Qh1+ {[%clk 0:00:18.7]} 34. Kc2 {[%clk 0:01:21]}
34... Qg2+ {[%clk 0:00:20.4]} 35. Nd2 {[%clk 0:01:21.9]} 35... f5 {[%clk
0:00:08.9]} 36. Qxg6 {[%clk 0:01:19.8]} 36... Kd7 {[%clk 0:00:10.4]} 37. Qh7+
{[%clk 0:01:15.1]} 37... Be7 {[%clk 0:00:11.6]} 38. Qh5 {[%clk 0:01:16.7]} 38...
Bd5 {[%clk 0:00:08.8]} 39. c4 {[%clk 0:01:12.4]} 39... Bc6 {[%clk 0:00:08.4]}
40. Qe2 {[%clk 0:01:13.9]} 40... Qg1 {[%clk 0:00:09.4]} 41. a3 {[%clk
0:01:12.4]} 41... Bf6 {[%clk 0:00:10.5]} 42. Nb1 {[%clk 0:00:59.3]} 42... Ba4+
{[%clk 0:00:10.6]} 43. b3 {[%clk 0:00:55.2]} 43... Bc6 {[%clk 0:00:11]} 44. Qd2
{[%clk 0:00:54.1]} 44... Ke7 {[%clk 0:00:11.8]} 45. a4 {[%clk 0:00:45.6]} 45...
Qd4 {[%clk 0:00:11.6]} 46. Kc1 {[%clk 0:00:41.9]} 46... Qg1+ {[%clk 0:00:12]}
47. Kc2 {[%clk 0:00:40.8]} 47... Qd4 {[%clk 0:00:13.4]} 48. Nc3 {[%clk
0:00:42.2]} 48... Qc5 {[%clk 0:00:15]} 49. Kb2 {[%clk 0:00:38.4]} 49... Qd4
{[%clk 0:00:10]} 50. h4 {[%clk 0:00:24.9]} 50... Be4 {[%clk 0:00:09.2]} 51. Kc2
{[%clk 0:00:24.7]} 51... Bf3 {[%clk 0:00:07.7]} 52. Be2 {[%clk 0:00:23.3]} 52...
Qf2 {[%clk 0:00:08.4]} 53. Bxf3 {[%clk 0:00:20.6]} 53... Qxf3 {[%clk 0:00:10.3]}
54. Ne2 {[%clk 0:00:18.9]} 54... Qe4+ {[%clk 0:00:10.2]} 55. Qd3 {[%clk
0:00:20.4]} 55... Qh1 {[%clk 0:00:11.3]} 56. Kd2 {[%clk 0:00:15.5]} 56... Qa1
{[%clk 0:00:10.9]} 57. Ke3 {[%clk 0:00:16.5]} 57... Qh1 {[%clk 0:00:06.5]} 58.
Qd2 {[%clk 0:00:10.2]} 58... Kf7 {[%clk 0:00:06.8]} 59. Qd7+ {[%clk 0:00:10.6]}
59... Be7 {[%clk 0:00:07.7]} 60. Kd2 {[%clk 0:00:04.7]} 60... Qb1 {[%clk
0:00:08.2]} 61. Qd3 {[%clk 0:00:06.2]} 61... Bb4+ {[%clk 0:00:08]} 62. Ke3
{[%clk 0:00:07.3]} 62... Qe1 {[%clk 0:00:07.8]} 63. h5 {[%clk 0:00:05.8]} 63...
Bc5+ {[%clk 0:00:08.5]} 64. Kf3 {[%clk 0:00:03.1]} 64... Qf1# {[%clk 0:00:09.3]}
0-1

[Event "*** Titled Tuesday Blitz"]
[Site "Chess.com"]
[Date "2018.06.05"]
[Round "3"]
[White "Ar4uha"]
[Black "PulpanJ"]
[Result "1-0"]
[WhiteElo "2588"]
[BlackElo "2629"]
[TimeControl "180+2"]
[EndTime "13:43:56 PDT"]
[Termination "Ar4uha won on time"]

1. e4 {[%clk 0:03:01.9]} 1... e5 {[%clk 0:02:56.7]} 2. Nf3 {[%clk 0:03:02.7]}
2... Nc6 {[%clk 0:02:55.8]} 3. d4 {[%clk 0:03:04.2]} 3... exd4 {[%clk
0:02:49.7]} 4. Nxd4 {[%clk 0:03:06.1]} 4... Bb4+ {[%clk 0:02:50.9]} 5. c3 {[%clk
0:03:06.9]} 5... Bc5 {[%clk 0:02:49.7]} 6. Be3 {[%clk 0:03:08.3]} 6... Bb6
{[%clk 0:02:46.9]} 7. Nf5 {[%clk 0:03:09.1]} 7... Bxe3 {[%clk 0:02:45.3]} 8.
Nxe3 {[%clk 0:03:11]} 8... Nf6 {[%clk 0:02:43.4]} 9. f3 {[%clk 0:03:09.9]} 9...
O-O {[%clk 0:02:40.9]} 10. c4 {[%clk 0:03:10.9]} 10... d6 {[%clk 0:02:28.1]} 11.
Nc3 {[%clk 0:03:11.9]} 11... Be6 {[%clk 0:02:24.4]} 12. Qd2 {[%clk 0:03:09]}
12... Qe7 {[%clk 0:02:21.5]} 13. Be2 {[%clk 0:03:07.1]} 13... Nh5 {[%clk
0:02:11.5]} 14. O-O {[%clk 0:03:06.4]} 14... Nf4 {[%clk 0:02:11.1]} 15. Ned5
{[%clk 0:02:34]} 15... Nxe2+ {[%clk 0:01:57.8]} 16. Qxe2 {[%clk 0:02:30.2]}
16... Bxd5 {[%clk 0:01:52.2]} 17. Nxd5 {[%clk 0:02:32.1]} 17... Qd7 {[%clk
0:01:52.3]} 18. Rad1 {[%clk 0:02:30.5]} 18... Ne7 {[%clk 0:01:51.9]} 19. Qf2
{[%clk 0:02:10.4]} 19... f5 {[%clk 0:01:48.4]} 20. e5 {[%clk 0:02:02.7]} 20...
Nxd5 {[%clk 0:01:32.7]} 21. Rxd5 {[%clk 0:02:04.6]} 21... Qc6 {[%clk 0:01:22.2]}
22. exd6 {[%clk 0:01:41.9]} 22... cxd6 {[%clk 0:01:22.5]} 23. Qd4 {[%clk
0:01:38.8]} 23... Rad8 {[%clk 0:01:11.2]} 24. Rd1 {[%clk 0:01:37.4]} 24... Rfe8
{[%clk 0:01:00]} 25. b3 {[%clk 0:01:32.4]} 25... g6 {[%clk 0:00:51.7]} 26. Rxd6
{[%clk 0:01:19.9]} 26... Rxd6 {[%clk 0:00:49.1]} 27. Qxd6 {[%clk 0:01:21.8]}
27... Qxd6 {[%clk 0:00:41.8]} 28. Rxd6 {[%clk 0:01:21.7]} 28... Re2 {[%clk
0:00:43.6]} 29. a4 {[%clk 0:01:14]} 29... b6 {[%clk 0:00:36.6]} 30. Rd8+ {[%clk
0:01:10]} 30... Kg7 {[%clk 0:00:37.5]} 31. Rd7+ {[%clk 0:01:11.1]} 31... Kh6
{[%clk 0:00:39]} 32. Rxa7 {[%clk 0:01:07.3]} 32... Rb2 {[%clk 0:00:39.9]} 33.
Rb7 {[%clk 0:01:04.1]} 33... Rxb3 {[%clk 0:00:40.4]} 34. a5 {[%clk 0:01:02.6]}
34... Rc3 {[%clk 0:00:37.3]} 35. axb6 {[%clk 0:00:56.4]} 35... Rxc4 {[%clk
0:00:38.3]} 36. Rc7 {[%clk 0:00:55.6]} 36... Rb4 {[%clk 0:00:38.9]} 37. b7
{[%clk 0:00:57.1]} 37... Rb2 {[%clk 0:00:35.6]} 38. h4 {[%clk 0:00:57.3]} 38...
g5 {[%clk 0:00:35.9]} 39. hxg5+ {[%clk 0:00:57.7]} 39... Kxg5 {[%clk 0:00:36.7]}
40. Rxh7 {[%clk 0:00:58.1]} 40... Kf4 {[%clk 0:00:37.3]} 41. Kh2 {[%clk
0:00:56.3]} 41... Rb1 {[%clk 0:00:38.5]} 42. Re7 {[%clk 0:00:54.6]} 42... Rb2
{[%clk 0:00:34.1]} 43. Rf7 {[%clk 0:00:53.9]} 43... Rb3 {[%clk 0:00:23.5]} 44.
Kg1 {[%clk 0:00:29.1]} 44... Rb2 {[%clk 0:00:21.5]} 45. Kf1 {[%clk 0:00:29.4]}
45... Ke3 {[%clk 0:00:22.8]} 46. Re7+ {[%clk 0:00:29.4]} 46... Kd3 {[%clk
0:00:15.2]} 47. g4 {[%clk 0:00:26.3]} 47... f4 {[%clk 0:00:09.5]} 48. g5 {[%clk
0:00:26.2]} 48... Rb1+ {[%clk 0:00:10.9]} 49. Kg2 {[%clk 0:00:27.3]} 49... Rb2+
{[%clk 0:00:12.7]} 50. Kh3 {[%clk 0:00:28.3]} 50... Kd4 {[%clk 0:00:13.5]} 51.
Kg4 {[%clk 0:00:26.1]} 51... Kd5 {[%clk 0:00:14.8]} 52. Kxf4 {[%clk 0:00:26.6]}
52... Kd6 {[%clk 0:00:16.4]} 53. Rf7 {[%clk 0:00:24.5]} 53... Ke6 {[%clk
0:00:17.7]} 54. g6 {[%clk 0:00:25]} 54... Rb4+ {[%clk 0:00:19.1]} 55. Kg5 {[%clk
0:00:26]} 55... Rb1 {[%clk 0:00:21]} 56. f4 {[%clk 0:00:26.4]} 56... Rg1+ {[%clk
0:00:22.3]} 57. Kh6 {[%clk 0:00:27.7]} 57... Rh1+ {[%clk 0:00:23.1]} 58. Kg7
{[%clk 0:00:28.6]} 58... Rb1 {[%clk 0:00:24.6]} 59. f5+ {[%clk 0:00:29.9]} 59...
Ke5 {[%clk 0:00:26]} 60. Kf8 {[%clk 0:00:30.2]} 60... Rd1 {[%clk 0:00:18.6]} 61.
b8=Q+ {[%clk 0:00:30.4]} 61... Ke4 {[%clk 0:00:18.2]} 62. g7 {[%clk 0:00:29.8]}
62... Kf3 {[%clk 0:00:12.6]} 63. g8=Q {[%clk 0:00:30.5]} 63... Ke2 {[%clk
0:00:02.7]} 64. Qg4+ {[%clk 0:00:25.4]} 64... Ke3 {[%clk 0:00:02.2]} 65. Re7+
{[%clk 0:00:22.3]} 1-0